bitfinex/quotes_ETHUSD_20250814
["timestamp","ask_amount","ask_price","bid_price","bid_amount"]
[1755182242286,1.2839,4692.5,4691.0,4.019]
[1755182242734,3.41475471,4693.0,4691.0,4.019]
[1755182243035,0.35707107,4692.9,4691.1,4.03931696]
[1755182243190,1.2839,4693.6,4691.3,2.13160531]
[1755182243386,0.003,4694.0,4691.4,5.2947]
[1755182243594,0.003,4694.0,4691.5,0.4324]
[1755182243916,0.003,4694.0,4693.4,2.13063666]
[1755182244225,0.003,4694.0,4693.6,2.13056076]
[1755182244589,0.003,4694.0,4693.6,3.0017205]
[1755182244796,1e-08,4693.7,4693.6,4.2997261]
[1755182245010,1e-08,4693.7,4693.6,4.2784205]
[1755182245732,1e-08,4693.7,4693.6,8.2954205]
[1755182245954,1e-08,4693.7,4693.6,7.0177205]
[1755182246300,1e-08,4693.7,4693.6,3.0017205]
[1755182246498,1e-08,4693.7,4693.6,6.14656076]
[1755182246700,1e-08,4693.7,4693.6,4.016]
[1755182247114,3.41441538,4693.7,4693.6,4.016]
[1755182247326,2.13075167,4693.2,4691.7,0.4324]
[1755182247523,2.13060521,4693.6,4691.8,4.8603]
[1755182247708,2.13060521,4693.6,4691.9,4.54527]
[1755182247709,0.0213759,4693.5,4691.9,4.54527]
[1755182247913,1.2839,4693.6,4692.0,4.016]
[1755182248338,1.2839,4693.6,4692.0,6.14727005]
[1755182248636,1e-08,4693.7,4691.9,0.52927]
[1755182248833,1e-08,4693.7,4691.7,0.8443]
[1755182248834,2.13056076,4693.6,4692.6,2.13100858]
[1755182249035,1e-08,4693.7,4692.7,4.015]
[1755182249706,2.13056076,4693.6,4692.8,4.014]
[1755182249906,1e-08,4693.7,4691.8,2.13137814]
[1755182250215,2.13073607,4693.3,4691.9,4.014]
[1755182250404,1.60176951,4693.2,4692.0,4.014]
[1755182250609,2.13116567,4692.3,4692.0,4.014]
[1755182250807,3.0,4693.8,4692.0,4.014]
[1755182250808,0.56553395,4695.8,4692.0,4.17008825]
[1755182251005,1e-08,4695.2,4695.1,2.12988008]
[1755182251204,1e-08,4695.2,4695.1,11.16402431]
[1755182251430,1e-08,4695.2,4695.1,9.14388008]
[1755182251662,1e-08,4695.2,4695.1,2.12988008]
[1755182252102,1e-08,4695.2,4695.1,6.14388008]
[1755182252315,1e-08,4695.2,4695.1,7.48216063]
[1755182253061,1e-08,4695.2,4695.1,7.48296063]
[1755182253213,1e-08,4695.2,4695.1,10.48296063]
[1755182253417,1e-08,4695.2,4695.1,11.14886063]
[1755182253976,1e-08,4695.2,4695.1,11.27646063]
[1755182254266,1e-08,4695.2,4695.1,10.48196063]
[1755182254418,1e-08,4695.2,4695.1,7.48196063]
[1755182255077,0.44970001,4695.2,4695.1,6.14268008]
[1755182255353,1e-08,4695.2,4695.1,4.0128]
[1755182255553,1e-08,4695.2,4695.1,6.14268008]
[1755182257043,1e-08,4695.2,4695.1,9.14268008]
[1755182257716,1e-08,4695.2,4695.1,9.80858008]
[1755182257913,1e-08,4695.2,4695.1,6.83543372]
[1755182258226,1e-08,4695.2,4695.1,7.84643372]
[1755182258429,0.8342,4697.6,4695.1,8.63993372]
[1755182258752,0.4497,4698.2,4696.0,2.12946054]
[1755182258952,0.4497,4698.2,4696.1,4.01]
[1755182259140,0.4497,4698.2,4696.2,0.61394605]
[1755182259455,0.8342,4698.1,4696.2,0.61394605]
[1755182259631,0.4497,4698.0,4696.2,0.61394605]
[1755182259840,0.4497,4698.0,4697.1,2.12893326]
[1755182260030,0.4497,4698.0,4697.2,4.01]
[1755182260229,0.4497,4698.0,4696.9,2.12902066]
[1755182260230,1.17543492,4697.9,4697.3,4.01]
[1755182260440,0.8342,4697.9,4697.3,4.01]
[1755182260641,0.4497,4698.6,4697.3,4.01]
[1755182260929,0.4497,4698.6,4698.5,2.12833883]
[1755182261128,0.4497,4698.6,4698.5,6.13733883]
[1755182261652,0.4497,4699.2,4698.5,4.1154]
[1755182261852,0.4497,4699.9,4699.1,0.1064]
[1755182262056,0.4497,4699.9,4699.5,0.1064]
[1755182262256,1.2839,4699.8,4697.3,2.12888149]
[1755182262453,1.2839,4699.8,4697.4,4.009]
[1755182262764,0.003,4700.0,4697.7,2.12870127]
[1755182262965,0.003,4700.0,4697.8,3.11114492]
[1755182263269,0.002,4698.0,4697.9,2.12861065]
[1755182263458,0.002,4698.0,4697.9,6.13761065]
[1755182263648,0.0012,4698.0,4697.9,6.13761065]
[1755182264460,0.0012,4698.0,4697.7,0.0008]
[1755182264659,0.0012,4698.0,4697.8,4.008]
[1755182264660,1.2839,4697.9,4697.8,4.008]
[1755182265177,1.2839,4697.9,4696.4,2.12928867]
[1755182265178,0.0012,4698.0,4695.5,2.12969115]
[1755182265470,0.0012,4698.0,4411.2,1.0]
[1755182265471,0.4497,4697.9,4695.6,2.15094982]
[1755182265675,2.12671985,4702.1,4695.7,0.02129607]
[1755182265870,1.2839,4699.9,4696.2,2.1293812]
[1755182266070,1.2839,4699.8,4696.1,3.0]
[1755182266271,1.2839,4699.7,4697.2,2.12892787]
[1755182266471,0.57839,4699.6,4697.4,2.12883722]
[1755182267059,2.12788849,4699.5,4697.6,2.12874659]
[1755182267265,3.41184528,4699.4,4698.4,2.12837702]
[1755182267442,1.2839,4699.3,4697.3,0.21289279]
[1755182267649,1.2839,4699.2,4697.4,4.494]
[1755182267960,2.12836037,4698.5,4697.5,2.12875272]
[1755182268277,1.2839,4698.4,4697.4,4.494]
[1755182268487,0.4497,4698.6,4697.4,4.494]
[1755182268771,0.4497,4698.6,4697.4,5.1562873]
[1755182269135,0.4497,4698.6,4698.2,2.12843498]
[1755182269338,0.4497,4699.3,4698.3,4.49]
[1755182269538,0.4497,4699.3,4699.2,2.12802179]
[1755182269777,0.4527,4700.0,4699.9,2.12770484]
[1755182270275,1.2869,4700.0,4699.9,2.12770484]
[1755182270463,1.2869,4700.0,4699.3,2.1279765]
[1755182270661,1.2869,4700.0,4699.2,4.49]
[1755182270662,1.2869,4700.0,4699.9,2.12770484]
[1755182270833,1.2869,4700.0,4699.8,2.12774412]
[1755182271035,0.4527,4700.0,4699.9,4.481]
[1755182271260,0.003,4700.0,4699.9,6.60870484]
[1755182271573,0.003,4700.0,4699.9,4.481]
[1755182271775,0.003,4700.0,4699.9,6.60870484]
[1755182272351,0.003,4700.0,4699.9,6.71510484]
[1755182272785,0.003,4700.0,4699.9,7.49299289]
[1755182272946,0.003,4700.0,4699.9,7.59939289]
[1755182273279,1e-08,4700.0,4699.9,7.59939289]
[1755182273482,0.01500001,4700.0,4699.9,7.59939289]
[1755182274869,0.01500001,4700.0,4699.9,7.49299289]
[1755182275196,0.01500001,4700.0,4699.9,7.59939289]
[1755182275395,1e-08,4700.0,4699.9,7.59939289]
[1755182277496,1e-08,4700.0,4699.9,7.89166342]
[1755182277690,1e-08,4700.0,4699.9,10.89166342]
[1755182278057,1e-08,4700.0,4699.9,10.59939289]
[1755182278759,1e-08,4700.0,4699.9,7.59939289]
[1755182279370,1e-08,4700.0,4699.9,7.49299289]
[1755182279571,1e-08,4700.0,4699.9,7.59939289]
[1755182279995,1e-08,4700.0,4699.9,3.11839289]
[1755182280302,1e-08,4700.0,4699.2,0.29227053]
[1755182280303,1.27230001,4700.0,4697.7,0.4318]
[1755182280477,1.2723,4699.9,4697.7,0.4318]
[1755182280663,2.12779539,4699.7,4696.4,5.101]
[1755182280865,0.1064,4698.7,4698.1,0.1064]
[1755182281102,2.12861888,4697.9,4697.5,0.001]
[1755182281261,1.2723,4697.8,4696.5,0.001]
[1755182281461,1.2723,4697.7,4696.5,0.001]
[1755182281665,1.49225771,4697.6,4696.5,0.001]
[1755182281963,1e-08,4700.0,4697.7,2.12867775]
[1755182282188,1.2723,4698.3,4697.5,0.1064]
[1755182282398,0.12723,4698.2,4697.6,2.414]
[1755182282565,1.2723,4698.3,4698.1,0.1064]
[1755182282764,2.12826311,4698.7,4698.2,4.435]
[1755182283009,0.1064,4698.7,4698.2,4.435]
[1755182283317,0.8425,4699.3,4698.2,4.435]
[1755182283464,0.8425,4699.3,4697.6,5.101]
[1755182283465,0.4298,4699.2,4698.3,4.45]
[1755182283796,0.12723,4699.1,4698.4,4.45]
[1755182284002,0.96973,4699.1,4698.5,4.456]
[1755182284299,2.12833883,4698.5,4698.4,4.454]
[1755182284499,2.12883722,4697.4,4697.3,4.451]
[1755182284711,1.2723,4697.4,4696.8,4.451]
[1755182284914,2.12893971,4697.2,4696.7,4.451]
[1755182285201,1.2723,4697.1,4696.7,4.451]
[1755182285402,2.127656,4700.1,4696.7,4.451]
[1755182285604,1.2723,4697.7,4696.7,4.451]
[1755182285978,0.4298,4698.5,4697.6,0.001]
[1755182286178,0.4298,4698.5,4698.0,2.12852863]
[1755182286410,1.2723,4698.4,4697.7,4.449]
[1755182286567,1.2723,4698.3,4697.6,0.001]
[1755182286766,1.39953,4698.2,4697.6,0.001]
[1755182287107,2.12892465,4697.3,4696.5,0.001]
[1755182287290,2.12862478,4697.9,4696.5,0.001]
[1755182287291,2.12919984,4696.6,4696.5,0.001]
[1755182287618,2.12919984,4696.6,4694.1,0.001]
[1755182287619,1.2723,4696.6,4694.1,0.001]
[1755182287764,1.2723,4696.5,4695.6,4.443]
[1755182288109,1.2723,4696.5,4694.1,0.001]
[1755182288110,1.2723,4696.4,4694.1,0.001]
[1755182288406,1.2723,4696.3,4694.2,4.438]
[1755182288561,1.2723,4696.3,4694.1,0.001]
[1755182288762,1.2723,4696.3,4695.6,2.12964989]
[1755182289090,1.2723,4696.3,4694.1,0.001]
[1755182289091,1.2723,4696.3,4695.7,4.447]
[1755182289291,0.4298,4697.0,4695.8,4.447]
[1755182289492,0.8425,4697.2,4696.5,2.12922417]
[1755182289695,0.12723,4698.2,4696.6,0.02129199]
[1755182289862,0.8425,4698.3,4696.1,2.12942654]
[1755182290182,0.8425,4698.3,4695.9,2.12951723]
[1755182290381,0.8425,4698.3,4697.5,2.12878661]
[1755182290582,0.8425,4698.3,4697.6,4.444]
[1755182290797,0.8425,4698.3,4696.0,2.12947189]
[1755182290972,0.8425,4698.3,4697.5,2.12875042]
[1755182291173,0.8425,4698.3,4697.6,4.44]
[1755182291363,0.8425,4698.3,4697.7,4.446]
[1755182291566,0.8425,4698.3,4697.8,4.444]
[1755182291863,1.2723,4698.2,4697.8,4.444]
[1755182292185,1.2723,4698.9,4697.8,4.444]
[1755182292384,2.12833726,4698.6,4697.8,4.444]
[1755182292681,2.12831603,4698.6,4697.8,4.444]
[1755182292886,2.12835308,4698.5,4697.8,4.4448]
[1755182293094,2.12824823,4698.7,4697.9,4.435]
[1755182293296,0.1064,4698.2,4697.9,4.435]
[1755182293470,1.2723,4698.1,4697.9,4.435]
[1755182293665,1.2723,4698.0,4697.8,0.0008]
[1755182294001,2.55801437,4698.8,4697.9,2.12861065]
[1755182294200,0.4298,4698.8,4698.4,2.12838395]
[1755182294376,1e-08,4700.0,4698.5,4.428]
[1755182294377,0.4298,4699.7,4698.5,4.428]
[1755182294581,0.1064,4699.6,4698.7,0.1064]
[1755182295098,0.1064,4699.6,4698.8,2.12820278]
[1755182295401,0.1064,4699.6,4698.5,4.428]
[1755182295602,0.1064,4699.6,4699.0,0.1064]
[1755182296109,0.8425,4699.3,4699.1,4.415]
[1755182296268,1.2723,4699.2,4698.2,2.12845424]
[1755182296465,1.2723,4699.2,4698.1,2.12852004]
[1755182296663,1.2723,4699.2,4698.0,5.103]
[1755182296893,0.8425,4699.2,4698.1,4.41]
[1755182297093,0.002,4699.4,4698.1,4.41]
[1755182297313,0.002,4699.4,4698.2,6.5364334]
[1755182297519,1.2723,4699.3,4698.6,2.12827396]
[1755182297715,0.002,4699.4,4698.6,2.12825594]
[1755182298033,0.002,4699.4,4698.0,5.103]
[1755182298334,1.2723,4699.3,4698.0,5.103]
[1755182298476,2.12806707,4699.1,4695.8,5.103]
[1755182298678,2.12861065,4697.9,4695.8,5.103]
[1755182298902,1.2723,4697.9,4697.2,4.404]
[1755182299117,1.2723,4697.9,4697.3,4.418]
[1755182299610,1.2723,4697.9,4696.6,0.001]
[1755182299611,2.12879191,4697.5,4697.4,4.418]
[1755182299821,2.12884157,4697.4,4696.6,0.001]
[1755182300115,3.0,4699.0,4696.6,0.001]
[1755182300116,1.2723,4698.5,4696.6,0.001]
[1755182300519,2.12889577,4697.3,4696.7,4.417]
[1755182300725,0.8425,4697.6,4696.6,0.001]
[1755182301077,2.12884844,4697.4,4696.6,0.001]
[1755182301417,2.97128543,4697.6,4696.7,4.412]
[1755182301594,0.8425,4697.6,4696.8,4.412]
[1755182301792,0.78459176,4697.5,4696.9,4.408]
[1755182301993,2.12901852,4697.0,4696.9,4.408]
[1755182302340,2.12906385,4696.9,4696.6,0.001]
[1755182302482,2.12910918,4696.8,4696.7,4.406]
[1755182302874,0.7974,4696.8,4696.7,4.406]
[1755182303080,2.92650918,4696.8,4696.7,4.4068]
[1755182303684,3.37100918,4696.8,4696.7,4.4068]
[1755182303893,3.37100918,4696.8,4696.7,0.0008]
[1755182304231,3.92101271,4696.8,4696.7,0.0008]
[1755182304584,2.12915451,4696.7,4696.6,0.001]
[1755182304788,3.37105451,4696.7,4696.6,0.001]
[1755182304989,3.52945737,4696.7,4696.6,0.001]
[1755182305305,4.70031111,4696.7,4696.6,0.001]
[1755182306090,4.80671111,4696.7,4696.6,0.001]
[1755182306290,7.80671111,4696.7,4696.1,0.001]
[1755182306526,2.2357812,4696.2,4696.1,0.001]
[1755182306745,3.4776812,4696.2,4696.1,0.001]
[1755182307044,3.95543188,4696.2,4696.1,0.001]
[1755182308703,4.50543188,4696.2,4696.1,1e-08]
[1755182308945,7.50543188,4696.2,4696.1,1e-08]
[1755182309237,3.0,4696.1,4694.1,0.001]
[1755182309395,1.2419,4696.0,4694.1,0.001]
[1755182309596,2.13003128,4694.8,4694.1,0.001]
[1755182309928,1.41386507,4695.9,4694.1,0.001]
[1755182310127,1.2419,4695.8,4694.1,0.001]
[1755182310292,1.2419,4695.7,4694.1,0.001]
[1755182310493,2.13018958,4694.5,4694.1,0.001]
[1755182310692,1.2419,4695.2,4694.1,0.001]
[1755182310893,1.2419,4695.8,4694.1,0.001]
[1755182311124,0.65434245,4695.7,4694.1,0.001]
[1755182311332,2.12969864,4695.5,4694.1,0.001]
[1755182311636,2.13015963,4694.5,4694.1,0.001]
[1755182311809,1.2419,4695.4,4694.1,0.001]
[1755182311994,2.12983472,4695.2,4694.1,0.001]
[1755182312194,0.33717347,4695.1,4694.1,0.001]
[1755182312399,2.13008484,4694.7,4694.1,0.001]
[1755182312600,2.12997828,4694.9,4694.1,0.001]
[1755182312826,2.13014412,4694.6,4694.1,0.001]
[1755182313032,1.2419,4695.4,4694.1,0.001]
[1755182313235,2.12990968,4695.1,4694.1,0.0018]
[1755182313400,0.18962425,4695.3,4694.1,0.0018]
[1755182313732,2.3194156,4695.3,4694.1,0.0018]
[1755182313918,0.18962425,4695.3,4694.1,0.0018]
[1755182314838,0.55,4695.1,4694.1,0.0018]
[1755182315133,2.13028844,4694.2,4694.1,0.0018]
[1755182315334,1.2419,4695.0,4694.1,0.0018]
[1755182315335,0.55,4694.9,4694.1,0.0018]
[1755182315538,1.2419,4695.0,4694.1,0.0018]
[1755182315926,2.13021366,4694.4,4694.1,0.0018]
[1755182316099,1.45492137,4694.3,4694.1,0.0018]
[1755182316302,3.37218844,4694.2,4694.1,0.0018]
[1755182316840,2.13028844,4694.2,4694.1,0.0018]
[1755182317226,3.37218844,4694.2,4694.1,0.0018]
[1755182317542,6.92218844,4694.2,4694.1,0.0018]
[1755182317841,0.55,4693.6,4692.1,0.001]
[1755182318030,1.2419,4693.5,4692.1,0.001]
[1755182318213,2.13098381,4692.7,4692.1,0.001]
[1755182318542,1.2419,4694.0,4692.1,0.001]
[1755182318706,0.55,4693.8,4692.1,0.001]
[1755182318905,0.55,4693.4,4692.1,0.001]
[1755182319229,2.68119645,4692.2,4692.1,1e-08]
[1755182319545,6.92309645,4692.2,4692.1,1e-08]
[1755182320122,11.26709645,4692.2,4692.1,1e-08]
[1755182320325,12.06501482,4692.2,4692.1,1e-08]
[1755182320525,12.05801482,4692.2,4692.1,1e-08]
[1755182320749,6.47859645,4692.2,4692.1,1e-08]
[1755182320956,6.92309645,4692.2,4692.1,1e-08]
[1755182321459,0.55,4691.5,4688.5,0.4337]
[1755182321662,0.55,4691.2,4688.5,0.4337]
[1755182321857,0.55,4691.3,4688.9,2.56636169]
[1755182322036,2.13188724,4690.7,4689.5,0.2909]
[1755182322221,0.61279,4691.2,4689.5,0.2909]
[1755182322419,2.13191757,4690.7,4689.5,0.2909]
[1755182322623,0.08628196,4691.3,4689.5,0.7246]
[1755182322831,0.7974,4691.2,4689.5,0.0008]
[1755182323057,1.2419,4691.2,4689.5,0.0008]
[1755182323256,0.55,4691.1,4689.5,0.0008]
[1755182323458,3.0,4690.9,4688.4,0.4337]
[1755182323661,2.13183252,4690.8,4688.4,0.4337]
[1755182323859,0.74737325,4690.7,4688.5,0.61993]
[1755182324065,2.68151444,4691.5,4688.7,2.13278733]
[1755182324227,2.13155322,4691.5,4688.8,1.11462741]
[1755182324428,2.131568,4691.4,4688.9,1.0933]
[1755182324745,0.08605308,4691.8,4688.5,0.61993]
[1755182324746,0.08605308,4691.8,4690.0,2.13215471]
[1755182324951,0.08605308,4691.8,4688.5,0.61993]
[1755182324952,0.55,4691.5,4688.8,0.4337]
[1755182325140,0.55,4691.1,4688.9,0.171323]
[1755182325319,1.2419,4691.0,4688.9,0.171323]
[1755182325526,1.2419,4691.0,4689.0,0.4337]
[1755182325726,0.55,4691.4,4689.0,0.4337]
[1755182325980,0.4445,4691.5,4689.1,0.6596]
[1755182326123,0.55,4691.4,4689.2,0.4337]
[1755182326329,0.55,4691.3,4689.2,0.4337]
[1755182326538,0.55,4691.1,4688.6,0.4337]
[1755182326738,0.55,4690.9,4688.6,2.56652476]
[1755182326948,1.7919,4691.0,4688.7,4.339]
[1755182327175,2.13221911,4690.0,4689.1,2.13259302]
[1755182327463,0.17919,4691.2,4689.2,1.0933]
[1755182327664,3.0,4691.6,4690.0,2.13217492]
[1755182327826,2.13151444,4691.5,4689.7,2.13232346]
[1755182328026,1.2419,4691.7,4689.3,0.10933]
[1755182328264,3.0,4691.4,4688.7,0.4337]
[1755182328603,5.13169619,4691.1,4688.5,4.94993]
[1755182328755,0.55,4690.7,4688.7,2.13277713]
[1755182328956,0.55,4690.7,4688.6,2.13283282]
[1755182329130,2.13228855,4689.8,4688.6,2.13283282]
[1755182329451,0.1064,4689.5,4688.7,0.96493536]
[1755182330249,0.1064,4689.5,4689.2,2.13252139]
[1755182330428,0.1064,4689.5,4689.4,2.13246897]
[1755182330779,0.7974,4691.0,4689.1,0.001]
[1755182330932,2.57583983,4691.9,4689.4,0.4337]
[1755182331130,0.1064,4690.6,4690.5,2.13196887]
[1755182331655,0.19646202,4692.5,4690.0,6.44417613]
[1755182331858,0.1064,4691.9,4691.4,2.13151728]
[1755182332032,0.1064,4691.9,4690.5,1.2315]
[1755182332033,0.1064,4691.9,4691.5,2.13150679]
[1755182332367,0.16180291,4692.4,4690.5,1.1251]
[1755182332368,0.1064,4691.4,4690.7,4.4164]
[1755182332539,0.1064,4691.9,4691.3,0.1064]
[1755182332747,0.1064,4691.9,4690.5,0.4655]
[1755182332748,0.4463,4691.8,4691.1,0.1064]
[1755182332938,0.8402,4692.0,4691.1,0.0008]
[1755182333133,0.4463,4692.5,4691.3,2.13156741]
[1755182333434,0.19660082,4692.5,4689.8,4.308]
[1755182333633,0.8402,4692.4,4690.1,0.6596]
[1755182333838,0.55,4692.3,4690.8,2.13180528]
[1755182334139,0.19975017,4692.2,4690.8,2.13179144]
[1755182334341,2.13139615,4691.8,4690.9,2.13178072]
[1755182334672,0.55,4691.7,4690.0,4.327]
[1755182334895,2.131469,4691.6,4690.0,4.327]
[1755182335204,0.8402,4691.5,4690.0,4.327]
[1755182335364,2.13182406,4690.9,4690.0,4.327]
[1755182335557,2.13160531,4691.3,4690.1,2.1321507]
[1755182335783,0.19696697,4691.4,4690.2,0.61196455]
[1755182335992,0.19696697,4692.1,4690.2,0.02132105]
[1755182336193,0.19696697,4692.0,4690.1,0.4655]
[1755182336368,0.19696697,4691.9,4690.2,2.13210524]
[1755182336695,0.19696697,4692.1,4690.3,0.4655]
[1755182336868,2.13137236,4691.9,4690.4,0.75538357]
[1755182337069,2.13134349,4691.9,4690.7,2.13186895]
[1755182337260,2.13142715,4691.7,4690.8,2.13182499]
[1755182337465,2.13128262,4692.1,4690.4,0.75538357]
[1755182337466,0.19696697,4692.0,4690.4,0.75538357]
[1755182337659,0.19696697,4691.9,4690.4,0.75538357]
[1755182337862,2.13134835,4691.9,4691.0,2.1317366]
[1755182338102,0.1621712,4692.5,4690.5,0.12208836]
[1755182338103,0.19696697,4692.4,4690.5,0.14340804]
[1755182338296,0.19696697,4692.3,4691.1,2.13169049]
[1755182338500,3.50850016,4692.8,4690.6,0.4655]
[1755182338501,0.19696697,4692.2,4691.2,4.303]
[1755182338803,0.19696697,4692.7,4691.3,6.2057]
[1755182338963,0.8402,4694.1,4691.3,6.2057]
[1755182338964,0.19696697,4693.8,4691.4,1.51637]
[1755182339172,2.13061985,4693.5,4691.4,1.51637]
[1755182339411,0.28554048,4693.9,4691.6,2.131469]
[1755182339707,0.8402,4694.1,4691.9,4.26266544]
[1755182339874,1.00344357,4694.1,4691.7,3.22609926]
[1755182340080,0.002,4693.3,4691.7,1.0947]
[1755182340413,0.002,4693.3,4691.7,0.4655]
[1755182340704,1.2865,4693.2,4691.8,4.308]
[1755182340927,0.002,4693.3,4691.9,0.4308]
[1755182341224,0.8422,4693.3,4692.0,4.306]
[1755182341568,0.002,4693.3,4693.2,2.13074235]
[1755182341799,0.002,4693.3,4693.2,7.52844235]
[1755182342166,0.002,4693.3,4693.2,7.52744235]
[1755182342365,0.002,4693.3,4693.2,8.4932681]
[1755182342661,0.002,4693.3,4693.2,7.8640681]
[1755182342866,0.002,4693.3,4693.2,7.00464235]
[1755182343206,0.002,4693.3,4693.2,7.00544235]
[1755182343375,0.002,4693.3,4693.2,7.63464235]
[1755182343778,0.002,4693.3,4693.2,6.52794235]
[1755182343984,0.002,4693.3,4693.2,6.99344235]
[1755182344182,0.002,4693.3,4693.2,7.64207298]
[1755182344381,0.002,4693.3,4693.2,6.52794235]
[1755182345293,0.002,4693.3,4693.2,7.62264235]
[1755182345869,0.002,4693.3,4693.2,6.99344235]
[1755182346171,0.002,4693.3,4693.2,2.70344235]
[1755182346370,0.002,4693.3,4693.2,7.60164235]
[1755182346591,0.002,4693.3,4693.2,8.5748881]
[1755182346873,1e-08,4693.3,4693.2,8.5748881]
[1755182347298,0.002,4693.8,4693.7,2.13051537]
[1755182347299,1e-08,4693.8,4693.7,2.13051537]
[1755182347501,1e-08,4693.8,4693.7,8.35552052]
[1755182347685,1e-08,4693.8,4693.7,8.44061537]
[1755182347885,1e-08,4693.8,4693.7,13.97080529]
[1755182348909,1e-08,4693.8,4693.7,8.61610529]
[1755182349210,1e-08,4693.8,4693.7,12.86910529]
[1755182349412,1e-08,4693.8,4693.7,5.2154]
[1755182349985,1e-08,4693.8,4693.7,9.357]
[1755182350185,1.28650001,4693.8,4693.7,9.357]
[1755182350393,3.41696999,4693.8,4693.7,9.357]
[1755182350623,2.13069695,4693.3,4693.2,0.0008]
[1755182350812,3.94972931,4693.3,4693.2,4.2448]
[1755182351526,3.94972931,4693.3,4693.2,4.2398]
[1755182351898,3.94972931,4693.3,4693.2,0.0008]
[1755182352095,2.66322931,4693.3,4693.2,4.2388]
[1755182352329,0.1064,4693.6,4693.2,4.2388]
[1755182352624,1.2865,4693.5,4693.3,4.239]
[1755182352923,0.1064,4693.6,4693.4,4.238]
[1755182353134,0.1064,4693.6,4693.5,4.238]
[1755182353428,0.1064,4693.3,4693.2,0.0008]
[1755182353683,1.3913,4693.3,4692.4,2.23750009]
[1755182353786,0.1048,4693.3,4692.5,4.232]
[1755182353987,1.28650001,4693.8,4692.5,4.232]
[1755182354188,1e-08,4693.8,4693.2,0.1064]
[1755182354387,1e-08,4693.8,4693.3,4.227]
[1755182354692,3.416975,4693.8,4693.4,4.226]
[1755182354898,1e-08,4693.8,4693.4,4.226]
[1755182355097,1e-08,4693.8,4693.4,6.35663956]
[1755182355330,1e-08,4693.8,4693.4,4.226]
[1755182356014,1e-08,4693.8,4693.4,4.6915]
[1755182356228,1e-08,4693.8,4693.6,2.13056076]
[1755182356396,1e-08,4693.8,4693.7,2.13051537]
[1755182356940,1e-08,4693.8,4693.7,3.24652052]
[1755182357137,1e-08,4693.8,4693.7,3.22521537]
[1755182357461,1e-08,4693.8,4693.7,7.43621537]
[1755182357592,1e-08,4693.8,4693.7,8.43981206]
[1755182358755,1e-08,4693.8,4693.7,7.80261206]
[1755182359443,1e-08,4693.8,4693.7,8.43181206]
[1755182359744,1e-08,4693.8,4693.7,4.22881206]
[1755182359912,1e-08,4693.8,4693.7,8.42781206]
[1755182360096,1e-08,4693.8,4693.7,3.13411206]
[1755182360295,1e-08,4693.8,4693.7,2.13051537]
[1755182360511,1e-08,4693.8,4692.0,2.2423388]
[1755182360696,1.28650001,4693.8,4692.1,4.191]
[1755182361015,1.28650001,4693.8,4691.6,0.6292]
[1755182361201,1.28650001,4693.8,4693.0,2.13082904]
[1755182361418,2.13056076,4693.6,4692.5,2.13105654]
[1755182361742,1.2423,4693.5,4692.6,4.188]
[1755182362044,1.2423,4693.5,4692.6,6.31901112]
[1755182362208,1.2423,4693.5,4692.7,2.13095321]
[1755182362409,1e-08,4693.8,4692.8,0.02130923]
[1755182362629,1e-08,4693.8,4693.0,2.13083315]
[1755182362808,1e-08,4693.8,4693.5,2.13056808]
[1755182363008,1e-08,4693.8,4693.6,2.13053744]
[1755182363207,1e-08,4693.8,4693.7,4.182]
[1755182363438,1e-08,4693.8,4693.7,2.13051537]
[1755182363623,1e-08,4693.8,4693.7,4.182]
[1755182363824,1e-08,4693.8,4693.7,6.30751537]
[1755182364722,1e-08,4693.8,4693.7,2.23691537]
[1755182364916,1e-08,4693.8,4693.7,4.2754]
[1755182365141,1.24230001,4693.8,4693.7,4.167]
[1755182365443,1e-08,4693.8,4693.7,7.0336755]
[1755182365810,1e-08,4693.8,4693.7,6.40391537]
[1755182366444,1e-08,4693.8,4693.7,2.13051537]
[1755182366615,1e-08,4693.8,4693.7,4.157]
[1755182366815,1.24230001,4693.8,4693.7,4.157]
[1755182367041,1.24230001,4693.8,4693.2,2.1307047]
[1755182367254,1e-08,4693.8,4693.3,4.156]
[1755182367437,1e-08,4693.8,4693.4,4.154]
[1755182367748,1e-08,4693.8,4693.5,4.154]
[1755182368212,1e-08,4693.8,4693.5,6.28456592]
[1755182368411,1e-08,4693.8,4693.5,6.28460352]
[1755182368635,1e-08,4693.8,4693.5,4.154]
[1755182368948,1.24230001,4693.8,4693.5,4.154]
[1755182369154,1.2423,4693.7,4693.6,4.153]
[1755182369665,1e-08,4693.8,4693.7,2.13051537]
[1755182369828,1e-08,4693.8,4693.6,4.5683]
[1755182370032,1e-08,4693.8,4693.7,2.13051537]
[1755182370349,1e-08,4693.8,4693.6,4.5683]
[1755182370741,1.2423,4693.7,4692.8,0.001]
[1755182370917,1.2423,4693.7,4692.9,4.145]
[1755182371556,1e-08,4693.8,4692.9,4.145]
[1755182371725,1e-08,4693.8,4693.1,2.13075562]
[1755182371917,1e-08,4693.8,4692.9,4.145]
[1755182372115,1e-08,4693.8,4693.0,0.4146]
[1755182372950,1e-08,4693.8,4692.8,0.001]
[1755182372951,1.24230001,4693.8,4693.1,4.131]
[1755182373149,3.37278101,4693.8,4693.1,4.131]
[1755182373355,1.24230001,4693.8,4693.1,4.131]
[1755182373743,2.13051945,4693.7,4693.1,4.131]
[1755182373930,1.24230001,4693.8,4693.1,4.131]
[1755182374328,1.24230001,4693.8,4693.3,0.001]
[1755182374518,0.79870001,4693.8,4693.3,0.4142]
[1755182374716,1e-08,4693.8,4693.3,0.4142]